lending/lending_fUSD_20250429
["ID","MTS","AMOUNT","RATE_DAILY","PERIOD"]
[359323957,1745922640244,-451.08,0.00027172,2]
[359323959,1745922640253,-162.05,0.00027172,2]
[359323961,1745922640262,-150.0,0.00027172,2]
[359323963,1745922640271,-1469.44,0.00027172,2]
[359323965,1745922640280,-162.05,0.00027172,2]
[359323966,1745922640289,-351.69,0.00027172,2]
[359323967,1745922640298,-914.67,0.00027172,2]
[359323968,1745922640307,-351.69,0.00027172,2]
[359323969,1745922640317,-150.0,0.00027172,2]
[359323970,1745922640326,-166.4,0.00027172,2]
[359323971,1745922640335,-150.0,0.00027172,2]
[359323972,1745922640344,-323.08,0.00027172,2]
[359323973,1745922640353,-363.95,0.00027397,2]
[359323974,1745922640362,-500.0,0.00027397,2]
[359323975,1745922640371,-152.02,0.00027397,2]
[359323976,1745922640380,-381.94183258,0.00027498,2]
[359323977,1745922640389,-4153.52757165,0.00027531,2]
[359323978,1745922640398,-36214.0659,0.00027541,2]
[359323979,1745922640407,-507.51881143,0.00027573,5]
[359323980,1745922640416,-500.0,0.00027573,5]
[359323981,1745922640425,-500.0,0.00027573,5]
[359323982,1745922640434,-459.34394019,0.00027573,2]
[359323983,1745922640443,-30111.1165577,0.00027588,2]
[359323984,1745922640453,-470.0,0.00027596,2]
[359323985,1745922640462,-182.67557881,0.00027596,2]
[359323987,1745922640471,-470.0,0.00027596,2]
[359323989,1745922640480,-670.35,0.00027596,2]
[359323991,1745922640489,-470.0,0.00027596,2]
[359323993,1745922640499,-574.15,0.00027596,2]
[359323995,1745922640509,-470.0,0.00027596,2]
[359323997,1745922640519,-476.61,0.00027596,2]
[359323999,1745922640529,-470.0,0.00027596,2]
[359324001,1745922640538,-724.57,0.00027596,2]
[359324003,1745922640547,-470.0,0.00027596,2]
[359324005,1745922640556,-470.0,0.00027596,2]
[359324007,1745922640566,-470.0,0.00027596,2]
[359324009,1745922640575,-529.4,0.00027596,2]
[359324011,1745922640584,-470.0,0.00027596,2]
[359324013,1745922640593,-923.96,0.00027596,2]
[359324015,1745922640602,-470.0,0.00027596,2]
[359324017,1745922640612,-470.0,0.00027596,2]
[359324019,1745922640621,-579.89,0.00027596,2]
[359324021,1745922640631,-696.11,0.00027596,2]
[359324023,1745922640640,-2004.44,0.00027596,2]
[359324025,1745922640650,-470.0,0.00027596,2]
[359324026,1745922640659,-544.19899845,0.00027596,2]
[359324028,1745922640668,-470.0,0.00027596,2]
[359324030,1745922640678,-496.16,0.00027596,2]
[359324032,1745922640687,-470.0,0.00027596,2]
[359324034,1745922640696,-470.0,0.00027596,2]
[359324036,1745922640706,-470.0,0.00027596,2]
[359324038,1745922640715,-470.0,0.00027596,2]
[359324040,1745922640724,-6190.53,0.00027596,2]
[359324042,1745922640733,-470.0,0.00027596,2]
[359324044,1745922640743,-388.54451128,0.00027596,2]
[359324046,1745922640753,-155.80818447,0.00027596,2]
[359324048,1745922640763,-470.0,0.00027596,2]
[359324050,1745922640773,-470.0,0.00027596,2]
[359324052,1745922640782,-470.0,0.00027596,2]
[359324054,1745922640791,-7674.422337,0.00027596,2]
[359324057,1745922640801,-470.0,0.00027596,2]
[359324059,1745922640811,-470.0,0.00027596,2]
[359324061,1745922640821,-470.0,0.00027597,2]
[359324062,1745922640831,-524.19,0.00027597,2]
[359324064,1745922640842,-470.0,0.00027597,2]
[359324067,1745922640852,-470.0,0.00027597,2]
[359324069,1745922640861,-470.0,0.00027597,2]
[359324071,1745922640870,-470.0,0.00027597,2]
[359324073,1745922640879,-470.0,0.00027597,2]
[359324075,1745922640888,-562.82,0.00027597,2]
[359324077,1745922640899,-508.86,0.00027597,2]
[359324079,1745922640908,-633.45,0.00027597,2]
[359324081,1745922640918,-470.0,0.00027597,2]
[359324083,1745922640927,-470.0,0.00027597,2]
[359324085,1745922640937,-470.0,0.00027597,2]
[359324087,1745922640946,-470.0,0.00027597,2]
[359324089,1745922640956,-470.0,0.00027597,2]
[359324091,1745922640965,-470.0,0.00027597,2]
[359324093,1745922640975,-470.0,0.00027597,2]
[359324095,1745922640985,-473.25,0.00027597,2]
[359324097,1745922640994,-470.0,0.00027597,2]
[359324099,1745922641003,-584.12,0.00027597,2]
[359324101,1745922641012,-470.0,0.00027597,2]
[359324103,1745922641021,-470.0,0.00027597,2]
[359324105,1745922641031,-470.0,0.00027597,2]
[359324107,1745922641041,-330.0,0.00027597,2]
[359324109,1745922641050,-516.28,0.00027597,2]
[359324111,1745922641059,-470.0,0.00027597,2]
[359324113,1745922641069,-470.0,0.00027597,2]
[359324115,1745922641078,-772.75,0.00027597,2]
[359324117,1745922641088,-470.0,0.00027597,2]
[359324119,1745922641097,-470.0,0.00027597,2]
[359324121,1745922641106,-470.0,0.00027597,2]
[359324123,1745922641115,-501.69,0.00027597,2]
[359324125,1745922641124,-470.0,0.00027597,2]
[359324127,1745922641134,-470.0,0.00027597,2]
[359324129,1745922641143,-470.0,0.00027597,2]
[359324131,1745922641153,-470.0,0.00027597,2]
[359324133,1745922641165,-470.0,0.00027597,2]
[359324134,1745922641174,-470.0,0.00027597,2]
[359324137,1745922641184,-771.76,0.00027597,2]
[359324139,1745922641193,-470.0,0.00027597,2]
[359324141,1745922641203,-470.0,0.00027597,2]
[359324143,1745922641212,-470.0,0.00027597,2]
[359324145,1745922641222,-470.0,0.00027597,2]
[359324147,1745922641231,-470.0,0.00027597,2]
[359324149,1745922641241,-470.0,0.00027597,2]
[359324151,1745922641250,-532.38,0.00027597,2]
[359324152,1745922641260,-470.0,0.00027597,2]
[359324154,1745922641269,-470.0,0.00027597,2]
[359324156,1745922641279,-470.0,0.00027597,2]
[359324158,1745922641289,-470.0,0.00027597,2]
[359324160,1745922641299,-470.0,0.00027597,2]
[359324162,1745922641307,-470.0,0.00027597,2]
[359324164,1745922641316,-483.45,0.00027597,2]
[359324166,1745922641326,-470.0,0.00027597,2]
[359324168,1745922641335,-470.0,0.00027597,2]
[359324170,1745922641344,-470.0,0.00027597,2]
[359324172,1745922641354,-470.0,0.00027597,2]
[359324174,1745922641363,-470.0,0.00027597,2]
[359324176,1745922641372,-470.0,0.00027597,2]
[359324178,1745922641382,-470.0,0.00027597,2]
[359324180,1745922641391,-470.0,0.00027597,2]
[359324182,1745922641400,-555.12,0.00027597,2]
[359324184,1745922641409,-470.0,0.00027597,2]
[359324186,1745922641418,-470.0,0.00027597,2]
[359324188,1745922641428,-470.0,0.00027597,2]
[359324189,1745922641438,-470.0,0.00027597,2]
[359324191,1745922641447,-470.0,0.00027597,2]
[359324193,1745922641457,-470.0,0.00027597,2]
[359324196,1745922641467,-470.0,0.00027597,2]
[359324197,1745922641476,-571.99,0.00027597,2]
[359324200,1745922641486,-470.0,0.00027597,2]
[359324201,1745922641495,-810.67,0.00027597,2]
[359324203,1745922641504,-470.0,0.00027597,2]
[359324206,1745922641514,-470.0,0.00027597,2]
[359324207,1745922641524,-470.0,0.00027597,2]
[359324209,1745922641535,-470.0,0.00027597,2]
[359324211,1745922641545,-470.0,0.00027597,2]
[359324214,1745922641555,-688.61,0.00027597,2]
[359324216,1745922641564,-470.0,0.00027597,2]
[359324217,1745922641574,-470.0,0.00027597,2]
[359324219,1745922641583,-777.17,0.00027597,2]
[359324221,1745922641593,-470.0,0.00027597,2]
[359324223,1745922641604,-470.0,0.00027597,2]
[359324225,1745922641613,-470.0,0.00027597,2]
[359324227,1745922641623,-470.0,0.00027597,2]
[359324229,1745922641632,-470.0,0.00027597,2]
[359324231,1745922641642,-470.0,0.00027597,2]
[359324233,1745922641651,-470.0,0.00027597,2]
[359324235,1745922641661,-470.0,0.00027597,2]
[359324237,1745922641671,-470.0,0.00027597,2]
[359324239,1745922641681,-470.0,0.00027597,2]
[359324241,1745922641690,-470.0,0.00027597,2]
[359324243,1745922641699,-554.85,0.00027597,2]
[359324245,1745922641709,-535.17,0.00027597,2]
[359324247,1745922641718,-1440.0,0.00027597,2]
[359324249,1745922641728,-470.0,0.00027597,2]
[359324251,1745922641738,-470.0,0.00027597,2]
[359324253,1745922641747,-470.0,0.00027597,2]
[359324255,1745922641756,-470.0,0.00027597,2]
[359324257,1745922641766,-470.0,0.00027597,2]
[359324259,1745922641776,-470.0,0.00027597,2]
[359324261,1745922641784,-470.0,0.00027597,2]
[359324263,1745922641794,-470.0,0.00027597,2]
[359324265,1745922641804,-470.0,0.00027597,2]
[359324267,1745922641813,-470.0,0.00027597,2]
[359324269,1745922641822,-470.0,0.00027597,2]
[359324271,1745922641831,-470.0,0.00027597,2]
[359324273,1745922641840,-470.0,0.00027597,2]
[359324275,1745922641849,-470.0,0.00027597,2]
[359324277,1745922641859,-470.0,0.00027597,2]
[359324279,1745922641868,-470.0,0.00027597,2]
[359324281,1745922641877,-470.0,0.00027597,2]
[359324283,1745922641887,-470.0,0.00027597,2]
[359324285,1745922641897,-470.0,0.00027597,2]
[359324287,1745922641906,-470.0,0.00027597,2]
[359324289,1745922641916,-470.0,0.00027597,2]
[359324291,1745922641925,-470.0,0.00027597,2]
[359324293,1745922641934,-470.0,0.00027597,2]
[359324295,1745922641943,-470.0,0.00027597,2]
[359324297,1745922641952,-528.09,0.00027597,2]
[359324299,1745922641961,-920.18,0.00027597,2]
[359324301,1745922641971,-470.0,0.00027597,2]
[359324303,1745922641980,-470.0,0.00027597,2]
[359324305,1745922641988,-470.0,0.00027597,2]
[359324307,1745922641999,-470.0,0.00027597,2]
[359324309,1745922642008,-470.0,0.00027597,2]
[359324311,1745922642018,-470.0,0.00027597,2]
[359324313,1745922642027,-489.4,0.00027597,2]
[359324315,1745922642036,-470.0,0.00027597,2]
[359324317,1745922642045,-2013.75,0.00027597,2]
[359324319,1745922642054,-470.0,0.00027597,2]
[359324321,1745922642064,-470.0,0.00027597,2]
[359324323,1745922642074,-1340.99,0.00027597,2]
[359324325,1745922642083,-2482.44,0.00027597,2]
[359324327,1745922642092,-470.0,0.00027597,2]
[359324329,1745922642102,-470.0,0.00027597,2]
[359324331,1745922642111,-470.0,0.00027597,2]
[359324333,1745922642121,-470.0,0.00027597,2]
[359324335,1745922642130,-661.45,0.00027597,2]
[359324337,1745922642139,-470.0,0.00027597,2]
[359324339,1745922642149,-470.0,0.00027597,2]
[359324340,1745922642162,-470.0,0.00027597,2]
[359324342,1745922642171,-470.0,0.00027597,2]
[359324344,1745922642181,-543.29,0.00027597,2]
[359324346,1745922642191,-470.0,0.00027597,2]
[359324348,1745922642201,-470.0,0.00027597,2]
[359324350,1745922642211,-470.0,0.00027597,2]
[359324352,1745922642220,-470.0,0.00027597,2]
[359324354,1745922642230,-478.93,0.00027597,2]
[359324356,1745922642240,-994.041328,0.00027597,2]
[359324358,1745922642250,-1492.4,0.00027597,2]
[359324360,1745922642259,-470.0,0.00027597,2]
[359324362,1745922642268,-470.0,0.00027597,2]
[359324364,1745922642277,-470.0,0.00027597,2]
[359324366,1745922642286,-470.0,0.00027597,2]
[359324368,1745922642296,-470.0,0.00027597,2]
[359324370,1745922642305,-470.0,0.00027597,2]
[359324372,1745922642314,-470.0,0.00027597,2]
[359324374,1745922642325,-433.0,0.00027597,2]
[359324376,1745922642335,-660.559899,0.00027597,2]
[359324378,1745922642344,-843.57,0.00027597,2]
[359324381,1745922642353,-884.62,0.00027597,2]
[359324383,1745922642363,-524.91,0.00027597,2]
[359324386,1745922642373,-470.0,0.00027597,2]
[359324388,1745922642382,-470.0,0.00027597,2]
[359324390,1745922642391,-1806.58,0.00027597,2]
[359324392,1745922642400,-470.0,0.00027597,2]
[359324394,1745922642410,-470.0,0.00027597,2]
[359324396,1745922642421,-470.0,0.00027597,2]
[359324398,1745922642430,-470.0,0.00027597,2]
[359324400,1745922642439,-627.26,0.00027597,2]
[359324402,1745922642449,-470.0,0.00027597,2]
[359324405,1745922642459,-470.0,0.00027597,2]
[359324407,1745922642468,-497.58,0.00027597,2]
[359324430,1745922642667,-663.92,0.00027597,2]
[359324434,1745922642677,-470.0,0.00027597,2]
[359324437,1745922642686,-470.0,0.00027597,2]
[359324441,1745922642695,-470.0,0.00027597,2]
[359324444,1745922642705,-470.0,0.00027597,2]
[359324447,1745922642714,-807.18,0.00027597,2]
[359324449,1745922642723,-470.0,0.00027597,2]
[359324451,1745922642733,-470.0,0.00027597,2]
[359324452,1745922642742,-470.0,0.00027597,2]
[359324453,1745922642751,-470.0,0.00027597,2]
[359324454,1745922642760,-470.0,0.00027597,2]
[359324455,1745922642769,-470.0,0.00027597,2]
[359324457,1745922642778,-470.0,0.00027597,2]
[359324459,1745922642787,-470.0,0.00027597,2]
[359324461,1745922642796,-470.0,0.00027597,2]
[359324463,1745922642806,-1054.99,0.00027597,2]
[359324465,1745922642815,-470.0,0.00027597,2]
[359324467,1745922642824,-470.0,0.00027597,2]
[359324469,1745922642834,-470.0,0.00027597,2]
[359324471,1745922642843,-470.0,0.00027597,2]
[359324473,1745922642852,-691.5,0.00027597,2]
[359324475,1745922642862,-545.84,0.00027597,2]
[359324477,1745922642871,-544.99,0.00027597,2]
[359324479,1745922642881,-470.0,0.00027597,2]
[359324481,1745922642890,-470.0,0.00027597,2]
[359324483,1745922642900,-470.0,0.00027597,2]
[359324485,1745922642910,-470.0,0.00027597,2]
[359324487,1745922642919,-470.0,0.00027597,2]
[359324489,1745922642928,-470.0,0.00027597,2]
[359324490,1745922642937,-470.0,0.00027597,2]
[359324491,1745922642947,-470.0,0.00027597,2]
[359324492,1745922642955,-470.0,0.00027597,2]
[359324493,1745922642965,-470.0,0.00027597,2]
[359324494,1745922642975,-470.0,0.00027597,2]
[359324495,1745922642983,-470.0,0.00027597,2]
[359324496,1745922642992,-470.0,0.00027597,2]
[359324497,1745922643002,-470.0,0.00027597,2]
[359324498,1745922643011,-470.0,0.00027597,2]
[359324499,1745922643021,-470.0,0.00027597,2]
[359324500,1745922643030,-470.0,0.00027597,2]
[359324501,1745922643039,-470.0,0.00027597,2]
[359324502,1745922643048,-470.0,0.00027597,2]
[359324503,1745922643057,-6918.84,0.00027597,2]
[359324504,1745922643067,-470.0,0.00027597,2]
[359324505,1745922643076,-500.0,0.00027597,2]
[359324506,1745922643085,-470.0,0.00027597,2]
[359324507,1745922643094,-470.0,0.00027597,2]
[359324508,1745922643104,-470.0,0.00027597,2]
[359324509,1745922643113,-471.9,0.00027597,2]
[359324510,1745922643123,-470.0,0.00027597,2]
[359324511,1745922643132,-470.0,0.00027597,2]
[359324512,1745922643142,-470.0,0.00027597,2]
[359324513,1745922643151,-470.0,0.00027597,2]
[359324514,1745922643164,-475.92,0.00027597,2]
[359324515,1745922643174,-470.0,0.00027597,2]
[359324516,1745922643184,-470.0,0.00027597,2]
[359324517,1745922643194,-470.0,0.00027597,2]
[359324518,1745922643205,-470.0,0.00027597,2]
[359324519,1745922643214,-542.2,0.00027597,2]
[359324520,1745922643223,-470.0,0.00027597,2]
[359324521,1745922643233,-470.0,0.00027597,2]
[359324522,1745922643245,-1024.37,0.00027597,2]
[359324524,1745922643255,-470.0,0.00027597,2]
[359324526,1745922643265,-470.0,0.00027597,2]
[359324528,1745922643274,-470.0,0.00027597,2]
[359324530,1745922643283,-470.0,0.00027597,2]
[359324532,1745922643293,-470.0,0.00027597,2]
[359324534,1745922643302,-3477.96,0.00027597,2]
[359324536,1745922643311,-470.0,0.00027597,2]
[359324538,1745922643320,-470.0,0.00027597,2]
[359324540,1745922643329,-470.0,0.00027597,2]
[359324542,1745922643338,-767.26,0.00027597,2]
[359324544,1745922643347,-519.63,0.00027597,2]
[359324546,1745922643357,-470.0,0.00027597,2]
[359324548,1745922643366,-470.0,0.00027597,2]
[359324550,1745922643375,-470.0,0.00027597,2]
[359324552,1745922643384,-470.0,0.00027597,2]
[359324554,1745922643393,-579.17,0.00027597,2]
[359324556,1745922643403,-530.15,0.00027597,2]
[359324558,1745922643412,-470.0,0.00027597,2]
[359324560,1745922643421,-470.0,0.00027597,2]
[359324562,1745922643430,-1474.02,0.00027597,2]
[359324564,1745922643439,-470.0,0.00027597,2]
[359324566,1745922643449,-803.47,0.00027597,2]
[359324568,1745922643459,-470.0,0.00027597,2]
[359324570,1745922643469,-665.07,0.00027597,2]
[359324572,1745922643478,-470.0,0.00027597,2]
[359324573,1745922643487,-470.0,0.00027598,2]
[359324575,1745922643497,-470.0,0.00027598,2]
[359324577,1745922643506,-470.0,0.00027598,2]
[359324579,1745922643515,-470.0,0.00027598,2]
[359324581,1745922643524,-470.0,0.00027598,2]
[359324584,1745922643535,-470.0,0.00027598,2]
[359324587,1745922643545,-470.0,0.00027598,2]
[359324589,1745922643554,-470.0,0.00027598,2]
[359324592,1745922643564,-470.0,0.00027598,2]
[359324595,1745922643573,-470.0,0.00027598,2]
[359324597,1745922643583,-470.0,0.00027598,2]
[359324600,1745922643592,-470.0,0.00027598,2]
[359324602,1745922643601,-470.0,0.00027598,2]
[359324605,1745922643610,-470.0,0.00027598,2]
[359324607,1745922643619,-470.0,0.00027598,2]
[359324610,1745922643629,-470.0,0.00027598,2]
[359324612,1745922643638,-442.26468506,0.00027598,2]
[359324614,1745922643648,-470.0,0.00027598,2]
[359324616,1745922643657,-799.98,0.00027598,2]
[359324619,1745922643667,-470.0,0.00027598,2]
[359324621,1745922643677,-470.0,0.00027598,2]
[359324623,1745922643687,-470.0,0.00027598,2]
[359324625,1745922643696,-599.39205387,0.00027598,2]
[359324627,1745922643705,-470.0,0.00027598,2]
[359324629,1745922643715,-470.0,0.00027598,2]
[359324630,1745922643724,-470.0,0.00027598,2]
[359324633,1745922643733,-916.19,0.00027598,2]
[359324635,1745922643743,-470.0,0.00027598,2]
[359324637,1745922643752,-470.0,0.00027598,2]
[359324639,1745922643762,-470.0,0.00027598,2]
[359324641,1745922643771,-470.0,0.00027598,2]
[359324643,1745922643781,-470.0,0.00027598,2]
[359324645,1745922643790,-470.0,0.00027598,2]
[359324647,1745922643800,-366.26452336,0.00027598,2]
[359324649,1745922643809,-470.0,0.00027598,2]
[359324651,1745922643819,-500.0,0.00027598,2]
[359324653,1745922643828,-193.03,0.00027598,2]
[359324655,1745922643837,-470.0,0.00027598,2]
[359324657,1745922643846,-470.0,0.00027598,2]
[359324659,1745922643855,-470.0,0.00027598,2]
[359324661,1745922643864,-439.43733849,0.00027598,2]
[359324663,1745922643876,-470.0,0.00027598,2]
[359324665,1745922643885,-470.0,0.00027598,2]
[359324667,1745922643894,-470.0,0.00027598,2]
[359324669,1745922643903,-470.0,0.00027598,2]
[359324671,1745922643913,-470.0,0.00027598,2]
[359324672,1745922643923,-470.0,0.00027598,2]
[359324674,1745922643932,-470.0,0.00027598,2]
[359324676,1745922643941,-470.0,0.00027598,2]
[359324678,1745922643951,-470.0,0.00027598,2]
[359324680,1745922643960,-470.0,0.00027598,2]
[359324683,1745922643970,-470.0,0.00027598,2]
[359324684,1745922643980,-400.0,0.00027598,2]
[359324686,1745922643989,-544.12,0.00027598,2]
[359324689,1745922643999,-470.0,0.00027598,2]
[359324690,1745922644009,-470.0,0.00027598,2]
[359324693,1745922644019,-470.0,0.00027598,2]
[359324695,1745922644029,-470.0,0.00027598,2]
[359324697,1745922644038,-470.0,0.00027598,2]
[359324699,1745922644047,-470.0,0.00027598,2]
[359324700,1745922644056,-470.0,0.00027598,2]
[359324702,1745922644065,-470.0,0.00027598,2]
[359324704,1745922644074,-4795.28,0.00027598,2]
[359324706,1745922644084,-470.0,0.00027598,2]
[359324709,1745922644094,-495.18,0.00027598,2]
[359324710,1745922644103,-590.02,0.00027598,2]
[359324712,1745922644113,-470.0,0.00027598,2]
[359324714,1745922644122,-470.0,0.00027598,2]
[359324716,1745922644131,-470.0,0.00027598,2]
[359324718,1745922644140,-323.95,0.000276,2]
[359324720,1745922644150,-300.0,0.000276,2]
[359324722,1745922644163,-381.94183255,0.00027615,2]
[359324724,1745922644174,-1197.08676562,0.0002763,2]
[359324726,1745922644183,-945.38809027,0.00027631,2]
[359324728,1745922644194,-9801.3664,0.00027641,2]
[359324731,1745922644205,-1000.0,0.00027641,2]
[359324733,1745922644216,-352.98094703,0.00027641,2]
[359324735,1745922644225,-945.38809025,0.00027666,2]
[359324737,1745922644236,-1197.08676559,0.00027697,2]
[359324738,1745922644246,-150.0,0.000277,2]
[359324741,1745922644256,-945.38809025,0.00027701,2]
[359324743,1745922644266,-60222.2331155,0.0002772,2]
[359324745,1745922644275,-279.84719788,0.0002773,2]
[359324747,1745922644286,-151.0,0.0002773,7]
[359324749,1745922644296,-151.0,0.0002773,7]
[359324751,1745922644305,-151.0,0.0002773,7]
[359324753,1745922644315,-151.0,0.0002773,7]
[359324755,1745922644324,-151.0,0.0002773,7]
[359324757,1745922644333,-156.201695,0.0002773,7]
[359324759,1745922644342,-151.0,0.0002773,7]
[359324761,1745922644351,-151.0,0.0002773,7]
[359324763,1745922644361,-162.418847,0.0002773,7]
[359324765,1745922644370,-151.0,0.0002773,7]
[359324767,1745922644381,-151.0,0.0002773,7]
[359324769,1745922644389,-151.0,0.0002773,7]
[359324771,1745922644399,-388.666048,0.0002773,7]
[359324773,1745922644408,-388.666048,0.0002773,7]
[359324774,1745922644418,-502.760034,0.0002773,7]
[359324776,1745922644428,-502.760034,0.0002773,7]
[359324778,1745922644438,-151.0,0.0002773,7]
[359324780,1745922644447,-932.827214,0.0002773,7]
[359324782,1745922644457,-932.827214,0.0002773,7]
[359324784,1745922644466,-60222.2331155,0.0002773,2]
[359324786,1745922644475,-4562.63865301,0.0002773,2]
[359324788,1745922644484,-197.393467,0.0002773,7]
[359324790,1745922644494,-481.308309,0.0002773,7]
[359324792,1745922644503,-197.393467,0.0002773,7]
[359324794,1745922644512,-481.308309,0.0002773,7]
[359324796,1745922644521,-154.295726,0.0002773,7]
[359324798,1745922644531,-151.0,0.0002773,7]
[359324800,1745922644540,-153.139737,0.0002773,7]
[359324802,1745922644550,-151.0,0.0002773,7]
[359324804,1745922644559,-206.58214,0.0002773,7]
[359324806,1745922644568,-151.0,0.0002773,7]
[359324808,1745922644577,-151.0,0.0002773,7]
[359324810,1745922644587,-154.03848,0.0002773,7]
[359324812,1745922644597,-155.592861,0.0002773,7]
[359324814,1745922644606,-155.592861,0.0002773,7]
[359324816,1745922644615,-151.0,0.0002773,7]
[359324817,1745922644624,-170.898745,0.0002773,7]
[359324819,1745922644633,-170.898745,0.0002773,7]
[359324821,1745922644643,-948.586399,0.0002773,7]
[359324823,1745922644652,-948.586399,0.0002773,7]
[359324825,1745922644662,-150555.582789,0.00027731,2]
[359324827,1745922644672,-127753.882284,0.00027731,2]
[359324829,1745922644681,-9125.27730602,0.00027731,2]
[359324831,1745922644691,-381.94183255,0.00027733,2]
[359324833,1745922644700,-500.0,0.00027739,2]
[359324835,1745922644710,-500.0,0.00027739,2]
[359324837,1745922644720,-500.0,0.00027739,2]
[359324839,1745922644731,-300.0,0.0002774,10]
[359324841,1745922644741,-500.0,0.0002774,2]
[359324843,1745922644750,-300.0,0.0002774,10]
[359324845,1745922644759,-300.0,0.0002774,10]
[359324846,1745922644768,-500.0,0.0002774,2]
[359324848,1745922644777,-500.0,0.0002774,2]
[359324850,1745922644787,-500.0,0.0002774,2]
[359324852,1745922644796,-538.14,0.0002774,2]
[359324854,1745922644805,-474.75565821,0.0002774,2]
[359324856,1745922644814,-553.09,0.0002774,2]
[359324858,1745922644823,-470.0,0.0002774,2]
[359324860,1745922644833,-470.0,0.0002774,2]
[359324862,1745922644842,-470.0,0.0002774,2]
[359324864,1745922644852,-470.0,0.0002774,2]
[359324866,1745922644861,-470.0,0.0002774,2]
[359324868,1745922644871,-470.0,0.0002774,2]
[359324869,1745922644880,-470.0,0.0002774,2]
[359324871,1745922644890,-470.0,0.0002774,2]
[359324873,1745922644899,-250.0,0.0002774,2]
[359324875,1745922644908,-470.0,0.0002774,2]
[359324877,1745922644918,-548.27454384,0.0002774,2]
[359324879,1745922644927,-176.57582129,0.0002774,2]
[359324881,1745922644937,-470.0,0.0002774,2]
[359324883,1745922644947,-470.0,0.0002774,2]
[359324885,1745922644956,-470.0,0.0002774,2]
[359324887,1745922644966,-416.95132453,0.0002774,2]
[359324889,1745922644976,-336.21434332,0.0002774,2]
[359324891,1745922644985,-470.0,0.0002774,2]
[359324893,1745922644995,-470.0,0.0002774,2]
[359324895,1745922645004,-470.0,0.0002774,2]
[359324897,1745922645014,-470.0,0.0002774,2]
[359324899,1745922645023,-470.0,0.0002774,2]
[359324901,1745922645032,-470.0,0.0002774,2]
[359324903,1745922645043,-580.52,0.0002774,2]
[359324905,1745922645052,-470.0,0.0002774,2]
[359324907,1745922645062,-338.32841734,0.0002774,2]
[359324909,1745922645071,-658.1,0.0002774,2]
[359324911,1745922645081,-470.0,0.0002774,2]
[359324913,1745922645090,-253.71047882,0.0002774,2]
[359324914,1745922645099,-470.0,0.0002774,2]
[359324916,1745922645108,-470.0,0.0002774,2]
[359324918,1745922645118,-470.0,0.0002774,2]
[359324920,1745922645128,-470.1013043,0.0002774,2]
[359324922,1745922645138,-470.0,0.0002774,2]
[359324924,1745922645147,-470.0,0.0002774,2]
[359324926,1745922645159,-470.0,0.0002774,2]
[359324928,1745922645169,-470.0,0.0002774,2]